[Event "Early-Titled-Tuesday-Blitz-February-06-2024"]
[Site "Chess.com"]
[Date "2024.02.06"]
[Round "9"]
[White "VitaliyBernadskiy"]
[Black "FabianoCaruana"]
[Result "0-1"]
[WhiteElo "2922"]
[BlackElo "3062"]
[TimeControl "180+1"]
[EndTime "9:44:56 PST"]
[Termination "FabianoCaruana won by resignation"]

1. d4 {[%clk 0:03:00.9]} 1... Nf6 {[%clk 0:02:59.6]} 2. Nf3 {[%clk 0:03:00.8]}
2... e6 {[%clk 0:02:59.2]} 3. Bg5 {[%clk 0:03:00.1]} 3... d5 {[%clk 0:02:56.8]}
4. e3 {[%clk 0:02:58.9]} 4... Be7 {[%clk 0:02:55.9]} 5. c4 {[%clk 0:02:58.8]}
5... h6 {[%clk 0:02:53.7]} 6. Bh4 {[%clk 0:02:57.2]} 6... O-O {[%clk 0:02:53.2]}
7. Nc3 {[%clk 0:02:56.5]} 7... Nbd7 {[%clk 0:02:53]} 8. Rc1 {[%clk 0:02:52.8]}
8... c6 {[%clk 0:02:51.3]} 9. a3 {[%clk 0:02:51.8]} 9... Ne4 {[%clk 0:02:50.2]}
10. Bxe7 {[%clk 0:02:51.1]} 10... Qxe7 {[%clk 0:02:51.1]} 11. Qc2 {[%clk
0:02:44.8]} 11... Nd6 {[%clk 0:02:43.9]} 12. cxd5 {[%clk 0:02:28.7]} 12... exd5
{[%clk 0:02:43.5]} 13. Bd3 {[%clk 0:02:28.3]} 13... Nf6 {[%clk 0:02:27.4]} 14.
Ne5 {[%clk 0:02:27.3]} 14... Ng4 {[%clk 0:02:26]} 15. Nxg4 {[%clk 0:02:27.3]}
15... Bxg4 {[%clk 0:02:26.9]} 16. O-O {[%clk 0:02:22.8]} 16... Rfe8 {[%clk
0:02:24]} 17. Rce1 {[%clk 0:02:12.8]} 17... Qg5 {[%clk 0:02:23.1]} 18. Kh1
{[%clk 0:01:57.3]} 18... Re7 {[%clk 0:02:15.1]} 19. f3 {[%clk 0:01:44]} 19...
Bd7 {[%clk 0:01:51.3]} 20. e4 {[%clk 0:01:42.4]} 20... dxe4 {[%clk 0:01:51.3]}
21. fxe4 {[%clk 0:01:42.3]} 21... f6 {[%clk 0:01:49.5]} 22. Qb3+ {[%clk
0:01:35.4]} 22... Be6 {[%clk 0:01:27.7]} 23. d5 {[%clk 0:01:19.2]} 23... Bf7
{[%clk 0:01:22.8]} 24. Qb4 {[%clk 0:01:19.3]} 24... Rd8 {[%clk 0:01:13]} 25.
dxc6 {[%clk 0:00:51]} 25... bxc6 {[%clk 0:01:13.9]} 26. Rd1 {[%clk 0:00:43.3]}
26... Rb7 {[%clk 0:01:08.8]} 27. Qd4 {[%clk 0:00:36]} 27... Rxb2 {[%clk
0:01:08.5]} 28. Ne2 {[%clk 0:00:34.2]} 28... Qe5 {[%clk 0:00:50.6]} 29. Qxa7
{[%clk 0:00:31.6]} 29... Nxe4 {[%clk 0:00:34.8]} 30. Qe3 {[%clk 0:00:28.6]}
30... Re8 {[%clk 0:00:24.9]} 31. Qd4 {[%clk 0:00:21.6]} 31... Qxd4 {[%clk
0:00:18.7]} 32. Nxd4 {[%clk 0:00:21.6]} 32... c5 {[%clk 0:00:19.4]} 33. Bxe4
{[%clk 0:00:15]} 33... Rxe4 {[%clk 0:00:19]} 34. Nf5 {[%clk 0:00:15.6]} 34...
Ree2 {[%clk 0:00:12.8]} 35. Rd8+ {[%clk 0:00:11.9]} 35... Kh7 {[%clk 0:00:13]}
36. Rg1 {[%clk 0:00:11.4]} 36... Be6 {[%clk 0:00:11.4]} 37. Ng3 {[%clk
0:00:11.8]} 37... Rec2 {[%clk 0:00:10.4]} 38. Ne4 {[%clk 0:00:10.8]} 38... Bf5
{[%clk 0:00:09.4]} 39. Nd6 {[%clk 0:00:10.5]} 39... Bh3 {[%clk 0:00:09.1]} 40.
Nc4 {[%clk 0:00:05]} 40... Rxc4 {[%clk 0:00:06.5]} 41. gxh3 {[%clk 0:00:01.1]}
41... Rcc2 {[%clk 0:00:07]} 42. Rg3 {[%clk 0:00:01.8]} 42... Rxh2+ {[%clk
0:00:06.9]} 43. Kg1 {[%clk 0:00:02.5]} 43... Rhc2 {[%clk 0:00:07.4]} 0-1

[Event "Early-Titled-Tuesday-Blitz-February-06-2024"]
[Site "Chess.com"]
[Date "2024.02.06"]
[Round "9"]
[White "rasmussvane"]
[Black "Rikikits"]
[Result "1-0"]
[WhiteElo "2976"]
[BlackElo "2852"]
[TimeControl "180+1"]
[EndTime "9:44:56 PST"]
[Termination "rasmussvane won on time"]

1. Nf3 {[%clk 0:02:59.8]} 1... d5 {[%clk 0:02:59.3]} 2. g3 {[%clk 0:02:57.5]}
2... c6 {[%clk 0:02:55.5]} 3. Bg2 {[%clk 0:02:57.5]} 3... Bg4 {[%clk 0:02:55.6]}
4. O-O {[%clk 0:02:57.3]} 4... Nd7 {[%clk 0:02:55.1]} 5. h3 {[%clk 0:02:57.3]}
5... Bxf3 {[%clk 0:02:54.3]} 6. Bxf3 {[%clk 0:02:58.2]} 6... e5 {[%clk
0:02:54.2]} 7. d3 {[%clk 0:02:58.5]} 7... Ngf6 {[%clk 0:02:54.3]} 8. e4 {[%clk
0:02:58.6]} 8... dxe4 {[%clk 0:02:54.5]} 9. dxe4 {[%clk 0:02:59.5]} 9... Bc5
{[%clk 0:02:53.2]} 10. Nd2 {[%clk 0:02:57.1]} 10... O-O {[%clk 0:02:52]} 11. Qe2
{[%clk 0:02:56.9]} 11... Qe7 {[%clk 0:02:48.6]} 12. Nb3 {[%clk 0:02:56]} 12...
Bb6 {[%clk 0:02:47.1]} 13. a4 {[%clk 0:02:53.1]} 13... a5 {[%clk 0:02:33.4]} 14.
Bd2 {[%clk 0:02:49.9]} 14... Nc5 {[%clk 0:02:29.2]} 15. Nxc5 {[%clk 0:02:48.6]}
15... Bxc5 {[%clk 0:02:30.1]} 16. Rfd1 {[%clk 0:02:48.3]} 16... Bd4 {[%clk
0:02:22.7]} 17. c3 {[%clk 0:02:46.3]} 17... Bb6 {[%clk 0:02:20.7]} 18. Kg2
{[%clk 0:02:44.8]} 18... Rfd8 {[%clk 0:02:16.4]} 19. Be1 {[%clk 0:02:44.5]}
19... Rxd1 {[%clk 0:02:14.6]} 20. Rxd1 {[%clk 0:02:45.4]} 20... Rd8 {[%clk
0:02:14.5]} 21. Rxd8+ {[%clk 0:02:38.5]} 21... Qxd8 {[%clk 0:02:15.4]} 22. Qc4
{[%clk 0:02:31.4]} 22... g6 {[%clk 0:02:08.1]} 23. Qb3 {[%clk 0:02:20.6]} 23...
Kg7 {[%clk 0:02:05.1]} 24. Qc2 {[%clk 0:02:13.5]} 24... Qd6 {[%clk 0:01:52.8]}
25. Bd2 {[%clk 0:02:10.4]} 25... Nd7 {[%clk 0:01:46.8]} 26. Bc1 {[%clk
0:02:08.3]} 26... Nc5 {[%clk 0:01:43.3]} 27. Be2 {[%clk 0:02:04]} 27... Ne6
{[%clk 0:01:36.8]} 28. Bc4 {[%clk 0:02:02.1]} 28... Bc5 {[%clk 0:01:11.1]} 29.
Kf1 {[%clk 0:01:39.9]} 29... b6 {[%clk 0:00:50.7]} 30. Ke2 {[%clk 0:01:39.7]}
30... Nf8 {[%clk 0:00:49.1]} 31. Qd2 {[%clk 0:01:33.5]} 31... Nd7 {[%clk
0:00:47.2]} 32. Qh6+ {[%clk 0:01:14.3]} 32... Kg8 {[%clk 0:00:47.2]} 33. Qh4
{[%clk 0:01:11]} 33... Nf6 {[%clk 0:00:25.4]} 34. Bg5 {[%clk 0:01:09.5]} 34...
Kg7 {[%clk 0:00:20.1]} 35. Bh6+ {[%clk 0:01:04.5]} 35... Kg8 {[%clk 0:00:20]}
36. Bb3 {[%clk 0:00:45.1]} 36... Nh5 {[%clk 0:00:18.5]} 37. Qg4 {[%clk 0:00:40]}
37... Ng7 {[%clk 0:00:14.6]} 38. Qc8+ {[%clk 0:00:34.8]} 38... Qf8 {[%clk
0:00:15.1]} 39. Qxc6 {[%clk 0:00:33.6]} 39... Qe7 {[%clk 0:00:15.7]} 40. Bd5
{[%clk 0:00:25.5]} 40... Ne8 {[%clk 0:00:14.8]} 41. h4 {[%clk 0:00:15.6]} 41...
Ng7 {[%clk 0:00:14.8]} 42. b4 {[%clk 0:00:12.9]} 42... axb4 {[%clk 0:00:14.4]}
43. cxb4 {[%clk 0:00:13.8]} 43... Bd4 {[%clk 0:00:14.5]} 44. Qc8+ {[%clk
0:00:08.3]} 44... Ne8 {[%clk 0:00:14.4]} 45. Bc6 {[%clk 0:00:07.8]} 1-0

[Event "Early-Titled-Tuesday-Blitz-February-06-2024"]
[Site "Chess.com"]
[Date "2024.02.06"]
[Round "9"]
[White "APOKALIPSA13"]
[Black "annamaja"]
[Result "0-1"]
[WhiteElo "2215"]
[BlackElo "2387"]
[TimeControl "180+1"]
[EndTime "9:44:57 PST"]
[Termination "annamaja won by checkmate"]

1. e4 {[%clk 0:03:00]} 1... e6 {[%clk 0:03:00.3]} 2. Nf3 {[%clk 0:03:00.9]} 2...
d5 {[%clk 0:02:54.7]} 3. d4 {[%clk 0:03:01.8]} 3... dxe4 {[%clk 0:02:52.6]} 4.
Ng5 {[%clk 0:03:01.9]} 4... Nf6 {[%clk 0:02:52]} 5. Nc3 {[%clk 0:03:01.6]} 5...
Bb4 {[%clk 0:02:51.6]} 6. a3 {[%clk 0:03:01.3]} 6... Bxc3+ {[%clk 0:02:49.7]} 7.
bxc3 {[%clk 0:03:02.2]} 7... h6 {[%clk 0:02:50.2]} 8. Nh3 {[%clk 0:03:02]} 8...
b6 {[%clk 0:02:49.7]} 9. Bb5+ {[%clk 0:02:59.3]} 9... c6 {[%clk 0:02:48.5]} 10.
Bc4 {[%clk 0:02:59]} 10... Bb7 {[%clk 0:02:43.3]} 11. O-O {[%clk 0:02:58.2]}
11... O-O {[%clk 0:02:41.7]} 12. f3 {[%clk 0:02:56.2]} 12... b5 {[%clk
0:02:34.7]} 13. Bb3 {[%clk 0:02:49.5]} 13... c5 {[%clk 0:02:27.3]} 14. dxc5
{[%clk 0:02:48.4]} 14... Qxd1 {[%clk 0:02:25.3]} 15. Rxd1 {[%clk 0:02:48.7]}
15... exf3 {[%clk 0:02:26]} 16. gxf3 {[%clk 0:02:47.5]} 16... Bxf3 {[%clk
0:02:26.8]} 17. Rf1 {[%clk 0:02:47.4]} 17... Be4 {[%clk 0:02:17.3]} 18. Bxh6
{[%clk 0:02:45.6]} 18... Bf5 {[%clk 0:02:16.6]} 19. Bg5 {[%clk 0:02:35.1]} 19...
Bxh3 {[%clk 0:02:16.5]} 20. Rf3 {[%clk 0:02:33.2]} 20... Bf5 {[%clk 0:02:15.3]}
21. Bxf6 {[%clk 0:02:23.5]} 21... gxf6 {[%clk 0:02:15.3]} 22. Kf2 {[%clk
0:02:19.4]} 22... Rd8 {[%clk 0:02:05.1]} 23. Rg1+ {[%clk 0:02:18.3]} 23... Kf8
{[%clk 0:02:05.4]} 24. h4 {[%clk 0:02:17.5]} 24... Ke7 {[%clk 0:02:05.1]} 25.
Re1 {[%clk 0:02:16.4]} 25... Bg4 {[%clk 0:01:57.9]} 26. Rf4 {[%clk 0:02:14.7]}
26... f5 {[%clk 0:01:58.2]} 27. a4 {[%clk 0:02:06.7]} 27... Na6 {[%clk
0:01:44.2]} 28. c6 {[%clk 0:02:05.3]} 28... bxa4 {[%clk 0:01:41]} 29. Bxa4
{[%clk 0:02:02.2]} 29... Rac8 {[%clk 0:01:33.6]} 30. Re5 {[%clk 0:01:58.6]}
30... Rd5 {[%clk 0:01:29.2]} 31. Rxd5 {[%clk 0:01:43.6]} 31... exd5 {[%clk
0:01:30.1]} 32. Bb5 {[%clk 0:01:43.6]} 32... Nc5 {[%clk 0:01:29.3]} 33. h5
{[%clk 0:01:41.3]} 33... Ne4+ {[%clk 0:01:27]} 34. Ke3 {[%clk 0:01:40.7]} 34...
Nxc3 {[%clk 0:01:25]} 35. Bd3 {[%clk 0:01:35.5]} 35... Kf6 {[%clk 0:01:12.9]}
36. Rb4 {[%clk 0:01:24.9]} 36... Rxc6 {[%clk 0:01:02.7]} 37. Rb7 {[%clk
0:01:24.6]} 37... Bxh5 {[%clk 0:00:47.2]} 38. Rxa7 {[%clk 0:01:24.2]} 38... Re6+
{[%clk 0:00:47.8]} 39. Kf4 {[%clk 0:01:21.3]} 39... Ne2+ {[%clk 0:00:47.1]} 40.
Bxe2 {[%clk 0:01:16.7]} 40... Bxe2 {[%clk 0:00:48]} 41. Ra5 {[%clk 0:01:14.6]}
41... Re4+ {[%clk 0:00:47.7]} 42. Kg3 {[%clk 0:01:14.4]} 42... Bc4 {[%clk
0:00:48.5]} 43. Kf3 {[%clk 0:01:12.2]} 43... Ke5 {[%clk 0:00:47.7]} 44. c3
{[%clk 0:01:11.8]} 44... Rf4+ {[%clk 0:00:46.9]} 45. Ke3 {[%clk 0:01:11.8]}
45... Rh4 {[%clk 0:00:47.4]} 46. Ra7 {[%clk 0:01:07.9]} 46... Rh3+ {[%clk
0:00:47.1]} 47. Kd2 {[%clk 0:01:07.7]} 47... f6 {[%clk 0:00:40.5]} 48. Re7+
{[%clk 0:01:05.6]} 48... Kf4 {[%clk 0:00:40.6]} 49. Re6 {[%clk 0:01:05.3]} 49...
d4 {[%clk 0:00:37.8]} 50. Rxf6 {[%clk 0:01:03.7]} 50... Rh2+ {[%clk 0:00:36.4]}
51. Kc1 {[%clk 0:01:02.9]} 51... d3 {[%clk 0:00:25.5]} 52. Rc6 {[%clk
0:00:59.1]} 52... d2+ {[%clk 0:00:23.1]} 53. Kc2 {[%clk 0:00:57.5]} 53... Bb3+
{[%clk 0:00:23]} 54. Kxb3 {[%clk 0:00:56.5]} 54... d1=Q+ {[%clk 0:00:23.5]} 55.
Kb4 {[%clk 0:00:56.6]} 55... Rb2+ {[%clk 0:00:21.2]} 56. Kc5 {[%clk 0:00:55.3]}
56... Qd3 {[%clk 0:00:20.1]} 57. c4 {[%clk 0:00:52]} 57... Qe3+ {[%clk
0:00:19.3]} 58. Kd6 {[%clk 0:00:50.7]} 58... Qd4+ {[%clk 0:00:17.9]} 59. Kc7
{[%clk 0:00:45.5]} 59... Qe5+ {[%clk 0:00:16]} 60. Kd7 {[%clk 0:00:44.8]} 60...
Rb7+ {[%clk 0:00:13.9]} 61. Kc8 {[%clk 0:00:44.1]} 61... Qb8# {[%clk 0:00:14.3]}
0-1

[Event "Early-Titled-Tuesday-Blitz-February-06-2024"]
[Site "Chess.com"]
[Date "2024.02.06"]
[Round "9"]
[White "HajiyevKanan"]
[Black "Road2GM3000"]
[Result "0-1"]
[WhiteElo "2605"]
[BlackElo "2502"]
[TimeControl "180+1"]
[EndTime "9:44:59 PST"]
[Termination "Road2GM3000 won on time"]

1. d4 {[%clk 0:02:47.9]} 1... d5 {[%clk 0:03:00.1]} 2. c4 {[%clk 0:02:45.1]}
2... c6 {[%clk 0:03:00.1]} 3. cxd5 {[%clk 0:02:46]} 3... cxd5 {[%clk 0:03:00.1]}
4. Nc3 {[%clk 0:02:46.3]} 4... Nf6 {[%clk 0:03:00.9]} 5. Nf3 {[%clk 0:02:46.1]}
5... Nc6 {[%clk 0:03:01.4]} 6. Bg5 {[%clk 0:02:46.8]} 6... a6 {[%clk 0:03:02.2]}
7. Bxf6 {[%clk 0:02:46.9]} 7... gxf6 {[%clk 0:03:02.4]} 8. e3 {[%clk 0:02:47.1]}
8... Bf5 {[%clk 0:03:02.3]} 9. Qb3 {[%clk 0:02:47]} 9... Ra7 {[%clk 0:03:02.3]}
10. Qxd5 {[%clk 0:02:46.2]} 10... Qxd5 {[%clk 0:03:00.1]} 11. Nxd5 {[%clk
0:02:47.1]} 11... e6 {[%clk 0:03:00.9]} 12. Nc3 {[%clk 0:02:42.2]} 12... Bb4
{[%clk 0:02:59.9]} 13. Rc1 {[%clk 0:02:41.7]} 13... Rg8 {[%clk 0:02:59.3]} 14.
a3 {[%clk 0:02:41.1]} 14... Ba5 {[%clk 0:02:58.4]} 15. b4 {[%clk 0:02:38.1]}
15... Nxb4 {[%clk 0:02:50.6]} 16. axb4 {[%clk 0:02:35.9]} 16... Bxb4 {[%clk
0:02:51.5]} 17. Be2 {[%clk 0:02:22.3]} 17... Ba3 {[%clk 0:02:34.9]} 18. Rd1
{[%clk 0:02:05.5]} 18... Bb4 {[%clk 0:02:32.9]} 19. Kd2 {[%clk 0:02:01.1]} 19...
Rxg2 {[%clk 0:02:32.1]} 20. Nh4 {[%clk 0:02:00.6]} 20... Rxf2 {[%clk 0:02:32.8]}
21. Nxf5 {[%clk 0:01:47.5]} 21... Rxf5 {[%clk 0:02:33.7]} 22. Kd3 {[%clk
0:01:26.5]} 22... Ra8 {[%clk 0:02:19.2]} 23. Ne4 {[%clk 0:01:25]} 23... Ra5
{[%clk 0:02:04]} 24. Nxf6+ {[%clk 0:01:09.4]} 24... Ke7 {[%clk 0:02:03.8]} 25.
Nh5 {[%clk 0:01:03.2]} 25... f5 {[%clk 0:01:32.8]} 26. Bf3 {[%clk 0:01:01.5]}
26... Ra3+ {[%clk 0:01:27.1]} 27. Ke2 {[%clk 0:00:59.8]} 27... Ra2+ {[%clk
0:01:25.5]} 28. Kf1 {[%clk 0:00:59.5]} 28... Rc8 {[%clk 0:01:23.6]} 29. Nf4
{[%clk 0:00:56.9]} 29... b5 {[%clk 0:01:07.7]} 30. Nd3 {[%clk 0:00:55]} 30...
Bd6 {[%clk 0:01:07.1]} 31. h4 {[%clk 0:00:48.2]} 31... b4 {[%clk 0:01:05.4]} 32.
Rg1 {[%clk 0:00:40.3]} 32... Kf6 {[%clk 0:01:05.7]} 33. Rg2 {[%clk 0:00:36.8]}
33... Ra3 {[%clk 0:00:59.1]} 34. Rb2 {[%clk 0:00:29.3]} 34... a5 {[%clk
0:00:58.8]} 35. Ke2 {[%clk 0:00:21.9]} 35... b3 {[%clk 0:00:49.5]} 36. Rdb1
{[%clk 0:00:19.6]} 36... a4 {[%clk 0:00:49.9]} 37. Kd2 {[%clk 0:00:15.2]} 37...
Bc7 {[%clk 0:00:45.6]} 38. Nc5 {[%clk 0:00:13.9]} 38... Ba5+ {[%clk 0:00:45.8]}
39. Kd3 {[%clk 0:00:14.2]} 39... e5 {[%clk 0:00:44.6]} 40. Bb7 {[%clk
0:00:11.7]} 40... Rc7 {[%clk 0:00:39.9]} 41. Kc4 {[%clk 0:00:09.4]} 41... f4
{[%clk 0:00:27.4]} 42. Be4 {[%clk 0:00:08.1]} 42... fxe3 {[%clk 0:00:25.4]} 43.
Kb5 {[%clk 0:00:04.1]} 43... Bc3 {[%clk 0:00:21.1]} 44. dxe5+ {[%clk 0:00:04.7]}
44... Kxe5 {[%clk 0:00:20.8]} 45. Rg2 {[%clk 0:00:02.7]} 45... Rxc5+ {[%clk
0:00:17]} 46. Kxc5 {[%clk 0:00:02.3]} 46... Kxe4 {[%clk 0:00:17.5]} 47. Rg4+
{[%clk 0:00:02.3]} 47... Kd3 {[%clk 0:00:17.1]} 48. Re4 {[%clk 0:00:01.6]} 48...
Kxe4 {[%clk 0:00:15.7]} 49. Kc4 {[%clk 0:00:01.9]} 49... Ra1 {[%clk 0:00:12.9]}
0-1

[Event "Early-Titled-Tuesday-Blitz-February-06-2024"]
[Site "Chess.com"]
[Date "2024.02.06"]
[Round "9"]
[White "Barmen_EV"]
[Black "falzehope0"]
[Result "1-0"]
[WhiteElo "2495"]
[BlackElo "2351"]
[TimeControl "180+1"]
[EndTime "9:44:59 PST"]
[Termination "Barmen_EV won by checkmate"]

1. e4 {[%clk 0:02:58.8]} 1... d5 {[%clk 0:02:58.7]} 2. exd5 {[%clk 0:02:58.5]}
2... Nf6 {[%clk 0:02:58.3]} 3. Bb5+ {[%clk 0:02:57.9]} 3... Nbd7 {[%clk
0:02:57.4]} 4. c4 {[%clk 0:02:53.7]} 4... g6 {[%clk 0:02:56.5]} 5. Nf3 {[%clk
0:02:52.4]} 5... Bg7 {[%clk 0:02:56.7]} 6. O-O {[%clk 0:02:52.3]} 6... O-O
{[%clk 0:02:56.4]} 7. Ba4 {[%clk 0:02:46.8]} 7... a5 {[%clk 0:02:44]} 8. Bc2
{[%clk 0:02:45.9]} 8... Nb6 {[%clk 0:02:39.7]} 9. d3 {[%clk 0:02:45.9]} 9... e6
{[%clk 0:02:38.5]} 10. dxe6 {[%clk 0:02:46.2]} 10... Bxe6 {[%clk 0:02:38.2]} 11.
Nc3 {[%clk 0:02:46.2]} 11... Qd7 {[%clk 0:02:37.4]} 12. Re1 {[%clk 0:02:40.7]}
12... Rad8 {[%clk 0:02:36.2]} 13. Ne5 {[%clk 0:02:39.9]} 13... Qc8 {[%clk
0:02:35.8]} 14. Bg5 {[%clk 0:02:37.3]} 14... h6 {[%clk 0:02:33.2]} 15. Bxf6
{[%clk 0:02:31.6]} 15... Bxf6 {[%clk 0:02:32.7]} 16. Qf3 {[%clk 0:02:32.3]}
16... Bg7 {[%clk 0:02:30.1]} 17. Rad1 {[%clk 0:02:29.9]} 17... Rfe8 {[%clk
0:02:28.2]} 18. Qg3 {[%clk 0:02:17.5]} 18... Nd7 {[%clk 0:02:25.7]} 19. Nxd7
{[%clk 0:02:11.5]} 19... Qxd7 {[%clk 0:02:24.5]} 20. d4 {[%clk 0:02:06.5]} 20...
Bxc4 {[%clk 0:02:22.4]} 21. d5 {[%clk 0:01:45.5]} 21... Ba6 {[%clk 0:02:20.7]}
22. Ne4 {[%clk 0:01:35.8]} 22... Be5 {[%clk 0:02:12.6]} 23. Qh4 {[%clk
0:01:22.3]} 23... Kg7 {[%clk 0:02:09.9]} 24. Re3 {[%clk 0:00:39.4]} 24... Bxb2
{[%clk 0:02:04.6]} 25. Nc5 {[%clk 0:00:28.8]} 25... Qd6 {[%clk 0:01:52.8]} 26.
Ne6+ {[%clk 0:00:28.3]} 26... fxe6 {[%clk 0:01:47.4]} 27. Rg3 {[%clk 0:00:26.9]}
27... g5 {[%clk 0:01:37.5]} 28. Qe4 {[%clk 0:00:19.8]} 28... exd5 {[%clk
0:01:26.1]} 29. Qh7+ {[%clk 0:00:18.8]} 29... Kf8 {[%clk 0:01:24.2]} 30. Rf3+
{[%clk 0:00:13.9]} 30... Bf6 {[%clk 0:01:23.4]} 31. Bg6 {[%clk 0:00:06.8]} 31...
Qe6 {[%clk 0:01:02.5]} 32. h4 {[%clk 0:00:07.1]} 32... Be2 {[%clk 0:00:50.3]}
33. Re1 {[%clk 0:00:02.8]} 33... Rd7 {[%clk 0:00:39.4]} 34. Qh8+ {[%clk
0:00:02.9]} 34... Ke7 {[%clk 0:00:38.9]} 35. Qxe8+ {[%clk 0:00:03.3]} 35... Kd6
{[%clk 0:00:39.8]} 36. Qxe6+ {[%clk 0:00:03.8]} 36... Kxe6 {[%clk 0:00:40.2]}
37. Rxe2+ {[%clk 0:00:04.7]} 37... Kd6 {[%clk 0:00:40.6]} 38. Rxf6+ {[%clk
0:00:04.7]} 38... Kc5 {[%clk 0:00:41.2]} 39. Rc2+ {[%clk 0:00:05.2]} 39... Kb4
{[%clk 0:00:39.8]} 40. Be8 {[%clk 0:00:04.7]} 40... Rd8 {[%clk 0:00:38.1]} 41.
Bf7 {[%clk 0:00:04.1]} 41... c5 {[%clk 0:00:37]} 42. Rf3 {[%clk 0:00:04.1]}
42... a4 {[%clk 0:00:36.1]} 43. Rf5 {[%clk 0:00:03.9]} 43... c4 {[%clk 0:00:37]}
44. Rxd5 {[%clk 0:00:04.2]} 44... Rf8 {[%clk 0:00:35.4]} 45. Rd7 {[%clk
0:00:03.7]} 45... b5 {[%clk 0:00:34.8]} 46. Rb7 {[%clk 0:00:04.1]} 46... Rd8
{[%clk 0:00:33.6]} 47. Rxc4+ {[%clk 0:00:03.8]} 47... Ka3 {[%clk 0:00:32.4]} 48.
Rc3+ {[%clk 0:00:04.3]} 48... Kb2 {[%clk 0:00:31.1]} 49. Re3 {[%clk 0:00:03.3]}
49... gxh4 {[%clk 0:00:23.2]} 50. Rxb5+ {[%clk 0:00:03.1]} 50... Ka1 {[%clk
0:00:21.9]} 51. Re1+ {[%clk 0:00:03.2]} 51... Rd1 {[%clk 0:00:19.5]} 52. Rxd1#
{[%clk 0:00:04]} 1-0

[Event "Early-Titled-Tuesday-Blitz-February-06-2024"]
[Site "Chess.com"]
[Date "2024.02.06"]
[Round "9"]
[White "Akylbek2021"]
[Black "Raud100"]
[Result "0-1"]
[WhiteElo "2294"]
[BlackElo "2433"]
[TimeControl "180+1"]
[EndTime "9:45:02 PST"]
[Termination "Raud100 won by resignation"]

1. Nf3 {[%clk 0:03:00.9]} 1... d5 {[%clk 0:02:59.5]} 2. g3 {[%clk 0:03:00]} 2...
c6 {[%clk 0:02:59.4]} 3. Bg2 {[%clk 0:02:59.6]} 3... Nf6 {[%clk 0:03:00.3]} 4.
d4 {[%clk 0:02:58.1]} 4... Bg4 {[%clk 0:03:00.7]} 5. O-O {[%clk 0:02:58.5]} 5...
e5 {[%clk 0:03:00.4]} 6. Nxe5 {[%clk 0:02:57.7]} 6... Bh5 {[%clk 0:02:59.9]} 7.
c4 {[%clk 0:02:56.2]} 7... dxc4 {[%clk 0:02:58.5]} 8. Nxc4 {[%clk 0:02:55.7]}
8... Be7 {[%clk 0:02:57.8]} 9. Nc3 {[%clk 0:02:54.9]} 9... O-O {[%clk
0:02:57.4]} 10. a4 {[%clk 0:02:53.8]} 10... Nbd7 {[%clk 0:02:57.2]} 11. Bf4
{[%clk 0:02:52.7]} 11... Nb6 {[%clk 0:02:56.3]} 12. Nxb6 {[%clk 0:02:40.7]}
12... axb6 {[%clk 0:02:54.4]} 13. Qb3 {[%clk 0:02:35.6]} 13... Re8 {[%clk
0:02:39.7]} 14. Rad1 {[%clk 0:02:31]} 14... Bf8 {[%clk 0:02:34.3]} 15. Be5
{[%clk 0:02:29.8]} 15... Nd7 {[%clk 0:02:32.7]} 16. Rfe1 {[%clk 0:02:04.1]}
16... Nxe5 {[%clk 0:02:27.7]} 17. dxe5 {[%clk 0:02:05]} 17... Qc7 {[%clk
0:02:27.5]} 18. Ne4 {[%clk 0:01:48]} 18... Rxe5 {[%clk 0:02:17.2]} 19. h3 {[%clk
0:01:40.6]} 19... Rae8 {[%clk 0:02:14.8]} 20. g4 {[%clk 0:01:30.7]} 20... Bg6
{[%clk 0:02:14.4]} 21. Ng3 {[%clk 0:01:29.1]} 21... Bc5 {[%clk 0:02:08.9]} 22.
e3 {[%clk 0:01:27.5]} 22... Kh8 {[%clk 0:01:51.8]} 23. Rd2 {[%clk 0:01:27.1]}
23... f6 {[%clk 0:01:51.3]} 24. Red1 {[%clk 0:01:27.2]} 24... Bf7 {[%clk
0:01:51.3]} 25. Qc2 {[%clk 0:01:22.5]} 25... Rxe3 {[%clk 0:01:23.9]} 26. Rd7
{[%clk 0:00:47.7]} 26... Qxg3 {[%clk 0:01:09.5]} 27. fxg3 {[%clk 0:00:36.4]}
27... Rc3+ {[%clk 0:01:05]} 28. Qf2 {[%clk 0:00:31]} 28... Bxf2+ {[%clk
0:01:02.8]} 29. Kxf2 {[%clk 0:00:31.9]} 29... Rc2+ {[%clk 0:01:00.4]} 30. Kg1
{[%clk 0:00:23.2]} 30... Ba2 {[%clk 0:00:39.4]} 31. b4 {[%clk 0:00:17]} 31... c5
{[%clk 0:00:27.9]} 32. bxc5 {[%clk 0:00:11.8]} 32... bxc5 {[%clk 0:00:28.8]} 33.
Rxb7 {[%clk 0:00:12]} 33... h6 {[%clk 0:00:19.9]} 34. Bf1 {[%clk 0:00:08.4]}
34... Bg8 {[%clk 0:00:14.7]} 35. Rdd7 {[%clk 0:00:07.5]} 35... Re1 {[%clk
0:00:12.5]} 36. Rxg7 {[%clk 0:00:07.6]} 36... Rcc1 {[%clk 0:00:12.3]} 37. a5
{[%clk 0:00:03]} 37... Rxf1+ {[%clk 0:00:12.4]} 38. Kg2 {[%clk 0:00:03.6]} 38...
Ra1 {[%clk 0:00:10]} 39. Rgd7 {[%clk 0:00:02.1]} 39... Rfd1 {[%clk 0:00:09.8]}
40. Rxd1 {[%clk 0:00:01.7]} 40... Rxd1 {[%clk 0:00:09.8]} 41. a6 {[%clk
0:00:02.6]} 41... Ra1 {[%clk 0:00:09.9]} 42. Rb8 {[%clk 0:00:02.5]} 42... Rxa6
{[%clk 0:00:09.2]} 43. Rc8 {[%clk 0:00:03]} 43... c4 {[%clk 0:00:09.1]} 44. Kf2
{[%clk 0:00:03.5]} 44... Kg7 {[%clk 0:00:09.5]} 45. Ke3 {[%clk 0:00:04]} 45...
Bf7 {[%clk 0:00:10.2]} 46. Kd4 {[%clk 0:00:03.6]} 46... Ra3 {[%clk 0:00:11.1]}
47. h4 {[%clk 0:00:01.9]} 47... Rxg3 {[%clk 0:00:10.8]} 0-1